lending/lending_fUSD_20240124
["ID","MTS","AMOUNT","RATE_DAILY","PERIOD"]
[312603610,1706061043381,-500.0,0.00032876,2]
[312603611,1706061043390,-500.0,0.00032876,2]
[312603612,1706061043399,-500.0,0.00032876,2]
[312603613,1706061043409,-1184.92,0.00032877,15]
[312603614,1706061043419,-307.44,0.00032906,2]
[312603615,1706061043429,-151.04961588,0.00032973,2]
[312603616,1706061043439,-688.38265055,0.00032978,4]
[312603617,1706061043448,-623.22614691,0.00033,2]
[312603618,1706061043458,-650.0,0.00033,3]
[312603619,1706061043468,-251.9669221,0.00033,2]
[312603620,1706061043477,-150.0,0.00033,2]
[312603621,1706061043487,-2541.9410996,0.00033173,5]
[312603622,1706061043496,-167.0,0.00033322,2]
[312603623,1706061043505,-1295.63962208,0.00033328,6]
[312603624,1706061043518,-151.04961588,0.00033485,2]
[312603625,1706061043528,-460.76,0.00033661,2]
[312603626,1706061043537,-1769.28,0.000337,2]
[312603627,1706061043547,-204.0,0.0003371,2]
[312603628,1706061043556,-205.0,0.0003371,2]
[312603629,1706061043565,-200.0,0.00033727,2]
[312603630,1706061043575,-199.30260962,0.00033742,2]
[312603631,1706061043584,-50000.0,0.000338,3]
[312603632,1706061043593,-281.01596965,0.000339,2]
[312603633,1706061043603,-1130.83901951,0.000339,2]
[312603634,1706061043613,-6425.05337772,0.000339,2]
[312603635,1706061043622,-590.42954172,0.000339,2]
[312603636,1706061043631,-1688.42690748,0.000339,2]
[312603637,1706061043641,-160.46,0.00033989,2]
[312603638,1706061043651,-160.46,0.0003399,2]
[312603639,1706061043661,-2541.9410996,0.00033991,6]
[312603640,1706061043670,-362.59511209,0.00033997,4]
[312603641,1706061043679,-150.0,0.00033997,2]
[312603642,1706061043689,-150.0,0.00033997,2]
[312603643,1706061043698,-151.04961588,0.00033998,2]
[312603644,1706061043708,-162.6509946,0.00033998,2]
[312603645,1706061043718,-19126.13858845,0.00033998,4]
[312603646,1706061043728,-229.582368,0.00033998,2]
[312603647,1706061043737,-12594.52381063,0.00033999,4]
[312603648,1706061043746,-303.45308795,0.00033999,2]
[312603649,1706061043756,-500.0,0.00033999,7]
[312603650,1706061043767,-500.0,0.00033999,7]
[312603651,1706061043776,-500.0,0.00033999,7]
[312603652,1706061043786,-500.0,0.00033999,7]
[312603653,1706061043795,-500.0,0.00033999,7]
[312603654,1706061043805,-500.0,0.00033999,7]
[312603655,1706061043814,-500.0,0.00033999,7]
[312603656,1706061043823,-500.0,0.00033999,7]
[312603657,1706061043833,-500.0,0.00033999,7]
[312603658,1706061043843,-500.0,0.00033999,7]
[312603659,1706061043853,-500.0,0.00033999,7]
[312603660,1706061043863,-500.0,0.00033999,7]
[312603661,1706061043872,-500.0,0.00033999,7]
[312603662,1706061043882,-500.0,0.00033999,7]
[312603663,1706061043891,-500.0,0.00033999,7]
[312603664,1706061043901,-500.0,0.00033999,7]
[312603665,1706061043910,-500.0,0.00033999,7]
[312603666,1706061043920,-500.0,0.00033999,7]
[312603667,1706061043930,-500.0,0.00033999,7]
[312603668,1706061043939,-500.0,0.00033999,7]
[312603669,1706061043950,-557.01612104,0.00033999,7]
[312603670,1706061043960,-500.0,0.00033999,7]
[312603671,1706061043970,-500.0,0.00033999,7]
[312603672,1706061043980,-500.0,0.00033999,7]
[312603673,1706061043989,-500.0,0.00033999,7]
[312603674,1706061043999,-500.0,0.00033999,7]
[312603675,1706061044009,-500.0,0.00033999,7]
[312603676,1706061044019,-500.0,0.00033999,7]
[312603677,1706061044029,-500.0,0.00033999,7]
[312603678,1706061044038,-500.0,0.00033999,7]
[312603679,1706061044049,-500.0,0.00033999,7]
[312603680,1706061044059,-500.0,0.00033999,7]
[312603681,1706061044069,-500.0,0.00033999,7]
[312603682,1706061044078,-500.0,0.00033999,7]
[312603683,1706061044088,-500.0,0.00033999,7]
[312603684,1706061044098,-500.0,0.00033999,7]
[312603685,1706061044107,-500.0,0.00033999,7]
[312603686,1706061044117,-500.0,0.00033999,7]
[312603687,1706061044127,-500.0,0.00033999,7]
[312603688,1706061044138,-500.0,0.00033999,7]
[312603689,1706061044147,-500.0,0.00033999,7]
[312603690,1706061044157,-500.0,0.00033999,7]
[312603691,1706061044166,-500.0,0.00033999,7]
[312603692,1706061044176,-500.0,0.00033999,7]
[312603693,1706061044185,-500.0,0.00033999,7]
[312603694,1706061044195,-500.0,0.00033999,7]
[312603695,1706061044204,-500.0,0.00033999,7]
[312603696,1706061044213,-500.0,0.00033999,7]
[312603697,1706061044223,-500.0,0.00033999,7]
[312603698,1706061044232,-500.0,0.00033999,7]
[312603699,1706061044241,-500.0,0.00033999,7]
[312603700,1706061044251,-500.0,0.00033999,7]
[312603701,1706061044260,-500.0,0.00033999,7]
[312603702,1706061044272,-500.0,0.00033999,7]
[312603703,1706061044282,-500.0,0.00033999,7]
[312603704,1706061044291,-500.0,0.00033999,7]
[312603705,1706061044301,-500.0,0.00033999,7]
[312603706,1706061044310,-500.0,0.00033999,7]
[312603707,1706061044320,-500.0,0.00033999,7]
[312603708,1706061044329,-388980.60556312,0.00034,2]
[312603709,1706061044338,-150.0,0.00034,2]
[312603710,1706061044349,-5737.23008593,0.00034,2]
[312603711,1706061044359,-12020.51309104,0.00034,2]
[312603712,1706061044368,-500.0,0.00034,2]
[312603713,1706061044377,-506.76637801,0.00034,4]
[312603714,1706061044386,-1000.0,0.00034,4]
[312603715,1706061044395,-150.0,0.00034,7]
[312603716,1706061044405,-167.4113574,0.00034,2]
[312603717,1706061044414,-503.864174,0.00034,7]
[312603718,1706061044423,-306.179395,0.00034,2]
[312603719,1706061044432,-274.53596365,0.00034,2]
[312603720,1706061044441,-274.53596365,0.00034,2]
[312603721,1706061044450,-274.53596365,0.00034,2]
[312603722,1706061044460,-274.53596365,0.00034,2]
[312603723,1706061044469,-274.53596365,0.00034,2]
[312603724,1706061044478,-752.04367678,0.00034044,2]
[312603725,1706061044488,-150.8982305,0.00034067,2]
[312603726,1706061044497,-5000.0,0.0003409,2]
[312603727,1706061044506,-167.0,0.00034323,2]
[312603728,1706061044517,-177.45912152,0.00034398,2]
[312603729,1706061044526,-16322.16133945,0.000344,2]
[312603730,1706061044536,-151.0124,0.00034498,4]
[312603731,1706061044545,-151.04961588,0.0003451,2]
[312603732,1706061044554,-150.0,0.00034548,10]
[312603733,1706061044564,-225.14131175,0.000347,24]
[312603734,1706061044573,-160.46,0.0003479,2]
[312603735,1706061044582,-150.0,0.00034799,2]
[312603736,1706061044591,-175.38953129,0.00034799,2]
[312603737,1706061044601,-651408.30029094,0.00034799,7]
[312603738,1706061044616,-154503.18932514,0.00034799,7]
[312603739,1706061044628,-94383.46675,0.00034799,7]
[312603740,1706061044639,-87666.01131775,0.00034799,7]
[312603741,1706061044650,-37061.2,0.00034799,7]
[312603742,1706061044662,-26578.11269621,0.00034799,7]
[312603743,1706061044673,-492.45187336,0.00034799,7]
[312603744,1706061044701,-344.83708884,0.00034799,7]
[312603745,1706061044713,-437.196016,0.00034799,7]
[312603746,1706061044749,-5753.04798979,0.00034799,7]
[312603749,1706061045946,-302.52014702,0.00030061,4]
[312603750,1706061045956,-429.38047636,0.00034799,7]
[312603751,1706061046044,-269.73733997,0.00034799,7]
[312603752,1706061046059,-489.71748965,0.00034799,7]
[312603755,1706061046071,-18599.80771487,0.00034799,7]
[312603757,1706061046082,-1870.04725169,0.00034799,7]
[312603761,1706061046153,-8960.93581399,0.00034799,7]
[312603765,1706061046222,-2824.50000151,0.00034799,7]
[312603766,1706061046235,-1040.65669349,0.00034799,7]
[312603770,1706061141857,157.78619392,0.000285,120]
[312603771,1706061168080,2201.19924779,0.00021002,2]
[312603774,1706061214434,180.5,0.00025458,120]
[312603775,1706061220318,1487.55217614,0.0002,2]
[312603780,1706061672820,316.79,0.000205,2]
[312603781,1706062118314,313.15,0.00019638,2]
[312603789,1706062176395,1793.8,0.00031,120]
[312603790,1706062211752,823.37313154,0.0003,120]
[312603791,1706062211776,7176.62686846,0.0003,120]
[312603808,1706062233400,-420.41907623,0.00021555,2]
[312603810,1706062233410,-495.24451122,0.00021556,2]
[312603812,1706062233419,-1000.0,0.00021557,2]
[312603814,1706062233433,-892.15,0.00021566,2]
[312603815,1706062233442,-958.87,0.00021584,2]
[312603816,1706062233452,-263.17,0.00021618,2]
[312603817,1706062233461,-2000.0,0.00021623,2]
[312603818,1706062233471,-157.28962954,0.00021899,2]
[312603819,1706062233480,-313.15,0.00021902,2]
[312603820,1706062233490,-250.0,0.00021918,2]
[312603821,1706062233499,-499.99,0.00021918,2]
[312603822,1706062233509,-150.0,0.00021999,2]
[312603823,1706062233519,-686.95,0.00021999,2]
[312603824,1706062233528,-320.35770482,0.00022,2]
[312603825,1706062233538,-235.48224479,0.00022,2]
[312603826,1706062233547,-251.45572562,0.00022,2]
[312603827,1706062233556,-176.5,0.00022,2]
[312603828,1706062233565,-257.27,0.00022,2]
[312603829,1706062233574,-942.18044949,0.00022136,2]
[312603830,1706062233584,-257.27,0.00022137,2]
[312603831,1706062233593,-155.15,0.00022216,2]
[312603832,1706062233607,-257.27,0.00022274,2]
[312603833,1706062233616,-155.15,0.00022321,2]
[312603834,1706062233626,-157.28962954,0.000224,2]
[312603835,1706062233635,-4941.02,0.00022411,2]
[312603836,1706062233645,-257.27,0.00022411,2]
[312603837,1706062233654,-257.27,0.00022411,2]
[312603838,1706062233663,-155.15,0.00022426,2]
[312603839,1706062233672,-179.75,0.00022478,2]
[312603840,1706062233683,-155.15,0.00022531,2]
[312603841,1706062233694,-176.5,0.00022548,2]
[312603842,1706062233703,-155.15,0.00022637,2]
[312603843,1706062233713,-672.43,0.0002267,2]
[312603844,1706062233722,-155.15,0.00022742,2]
[312603845,1706062233732,-1000.0,0.00022769,2]
[312603846,1706062233741,-431.8749,0.000228,2]
[312603847,1706062233751,-991.7104,0.000228,2]
[312603848,1706062233761,-5607.3687,0.000228,2]
[312603849,1706062233771,-1194.66996784,0.000228,2]
[312603850,1706062233781,-155.15,0.00022847,2]
[312603851,1706062233791,-204.52799996,0.00022899,2]
[312603852,1706062233801,-359.7266,0.000229,2]
[312603854,1706062233810,-181740.48084583,0.000229,2]
[312603856,1706062233854,-907.0,0.000229,2]
[312603857,1706062233870,-62352.51915417,0.000229,2]
[312603858,1706062233880,-1000.0,0.000229,2]
[312603859,1706062233889,-157.28962954,0.000229,2]
[312603860,1706062233899,-167.24267314,0.000229,2]
[312603861,1706062233908,-190.55502928,0.000229,2]
[312603862,1706062233918,-151.04961588,0.000229,2]
[312603863,1706062233927,-5000.0,0.000229,2]
[312603864,1706062233937,-1985.18926489,0.000229,2]
[312603865,1706062233950,-300.16613126,0.000229,2]
[312603866,1706062233960,-2784.1410661,0.000229,2]
[312603867,1706062233970,-4303.19907498,0.000229,2]
[312603868,1706062233979,-166.14275838,0.000229,2]
[312603869,1706062233989,-155.15,0.00022952,2]
[312603870,1706062233999,-5447.86460582,0.00022999,2]
[312603871,1706062234009,-772.43422482,0.00022999,2]
[312603872,1706062234019,-2920.93837082,0.00022999,2]
[312603873,1706062234028,-150.0,0.00022999,2]
[312603874,1706062234038,-171.004793,0.00022999,2]
[312603875,1706062234047,-25259.45562444,0.00023,2]
[312603876,1706062234059,-1129.24535294,0.00023,2]
[312603877,1706062234094,-484.10191491,0.00023,2]
[312603878,1706062234105,-655442.02407627,0.00023,2]
[312603879,1706062234133,-1186.69011417,0.00023,2]
[312603880,1706062234144,-269.42731393,0.00023,2]
[312603881,1706062234180,-576205.40992685,0.00023,2]
[312603882,1706062234192,-159451.96250937,0.00023,2]
[312603883,1706062234203,-23736.57730222,0.00023,2]
[312603884,1706062234215,-7924.14223101,0.00023,2]
[312603888,1706062238028,-314.64308926,0.00021555,2]
[312603889,1706062238038,-34816.59314871,0.00023,2]
[312603890,1706062238062,-1015584.48417445,0.00023,2]
[312603891,1706062238072,-5000.0,0.00023,2]
[312603892,1706062238081,-1165749.66443461,0.00023,2]
[312603894,1706062238164,-4723.37346589,0.00023,2]
[312603895,1706062238227,-261.02247649,0.00023,2]
[312603896,1706062238291,-1130.88909021,0.00023,2]
[312603897,1706062238304,-473.3383626,0.00023,2]
[312603898,1706062238334,-4178.21223566,0.00023,2]
[312603899,1706062240230,-6839.3147861,0.000229,2]
[312603900,1706062240240,-19704.84025534,0.00023,2]
[312603901,1706062240980,-522.051,0.00023,2]
[312603902,1706062240991,-1848.43541458,0.00023,2]
[312603910,1706062242914,-180.1130494,0.000229,6]
[312603911,1706062242924,-108.00105868,0.000229,2]
[312603912,1706062242936,-767.86366982,0.000229,2]
[312603913,1706062242946,-19619.85753019,0.00023,2]
[312603914,1706062243023,-272679.30865532,0.00023,2]
[312603915,1706062243079,-2081.782,0.00023,2]
[312603916,1706062243091,-2596.26077757,0.00023,2]
[312603917,1706062243137,-2058.24192669,0.00023,2]
[312603922,1706062245938,-298.55410117,0.00023,2]
[312603923,1706062245951,-252.03744234,0.00023,2]
[312603924,1706062245983,-498.64450322,0.00022899,2]
[312603925,1706062245992,-191.35549678,0.00023,2]
[312603926,1706062246069,-1288.17523618,0.00023,2]
[312603927,1706062246171,-3658.87146499,0.00023,2]
[312603929,1706062782171,307.66,0.00020766,2]
[312603930,1706063012708,155.23846894,0.00020766,2]
[312603931,1706063030702,156.93377464,0.00020766,2]
[312603932,1706063114435,167.53,0.0001763,2]
[312603934,1706063264314,308.83,0.00019925,2]
[312603960,1706063431948,-1000.0,0.00021681,2]
[312603961,1706063431958,-373.12,0.00021682,2]
[312603962,1706063431968,-23880.0,0.00021882,2]
[312603963,1706063431978,-200.0,0.00021954,2]
[312603964,1706063431987,-799.05,0.00021957,2]
[312603965,1706063431997,-2000.0,0.00021995,2]
[312603966,1706063432006,-150.0,0.00022078,2]
[312603967,1706063432016,-150.0,0.00022084,2]
[312603968,1706063432025,-151.19743446,0.00022085,2]
[312603969,1706063432035,-250.0,0.00022141,2]
[312603970,1706063432045,-155.15,0.00022185,2]
[312603971,1706063432055,-499.99,0.00022185,2]
[312603972,1706063432064,-308.83,0.00022189,2]
[312603973,1706063432074,-713.72,0.00022235,2]
[312603974,1706063432083,-170.77,0.00022436,2]
[312603975,1706063432093,-673.34199828,0.00022471,2]
[312603976,1706063432103,-1000.0,0.00022488,2]
[312603977,1706063432113,-155.15,0.00022571,2]
[312603978,1706063432122,-180.11490934,0.00022583,2]
[312603979,1706063432131,-633.26259901,0.000226,2]
[312603980,1706063432140,-365.37017527,0.000227,2]
[312603981,1706063432150,-15866.9329,0.000227,2]
[312603982,1706063432159,-480.054,0.000227,2]
[312603983,1706063432169,-10702.13327416,0.000228,2]
[312603984,1706063432229,-1528.84125631,0.000228,2]
[312603985,1706063432242,-2867.05041199,0.000228,2]
[312603986,1706063432282,-400.81611979,0.000228,2]
[312603992,1706063438062,-366.76087631,0.00021957,2]
[312603993,1706063438191,-17408.32923057,0.00021957,2]
[312603994,1706063438205,-376.56700672,0.00021957,2]
[312604003,1706063440568,-3490.87791304,0.00021957,2]
[312604004,1706063440587,-11976.0,0.00021957,2]
[312604005,1706063441124,-312.52609998,0.00021957,2]
[312604006,1706063441184,-1015.87171465,0.00021957,2]
[312604007,1706063441193,-54473.85673775,0.000228,2]
[312604008,1706063441202,-5269.5413786,0.000228,2]
[312604009,1706063441214,-983.22164338,0.000228,2]
[312604010,1706063441225,-2973.49087802,0.000228,2]
[312604011,1706063441233,-286.28,0.00022888,2]
[312604012,1706063441242,-2859.67879031,0.000229,2]
[312604013,1706063441265,-1460.94066769,0.000229,2]
[312604014,1706063441276,-5690.95124773,0.000229,2]
[312604015,1706063441288,-760.97367998,0.000229,2]
[312604016,1706063441299,-6319.6500043,0.000229,2]
[312604026,1706063443075,-1456.20448539,0.000229,2]
[312604027,1706063443087,-1024.93389214,0.000229,2]
[312604028,1706063443139,-465.15169898,0.000229,2]
[312604029,1706063443197,-304.71400008,0.000229,2]
[312604030,1706063443257,-2368.10885347,0.000229,2]
[312604031,1706063443268,-1021.43975446,0.000229,2]
[312604037,1706063446139,-512.67,0.000229,2]
[312604038,1706063446303,-1196.94471328,0.000229,2]
[312604039,1706063446315,-359.48102201,0.000229,2]
[312604040,1706063446326,-103.30049018,0.000229,2]
[312604041,1706063446335,-177.57099928,0.000229,2]
[312604042,1706063460889,536.04901528,0.00021,2]
[312604048,1706064002763,150.0,0.00021,2]
[312604049,1706064002854,150.0,0.00021,2]
[312604050,1706064002917,297.67358767,0.00021,2]
[312604067,1706064217659,277.94,0.00019709,2]
[312604068,1706064257766,1214.25179136,0.00019709,2]
[312604071,1706064373751,247.0,0.00019709,2]
[312604075,1706064441915,176.5,0.00020622,2]
[312604134,1706064632143,-3333.08138673,0.00021073,2]
[312604135,1706064632153,-1000.0,0.00021074,2]
[312604136,1706064632162,-11758.99393752,0.00021075,2]
[312604137,1706064632173,-7264.67254255,0.00021075,2]
[312604138,1706064632183,-150.0,0.0002108,2]
[312604139,1706064632192,-150.0,0.0002108,2]
[312604140,1706064632201,-300.0,0.0002108,2]
[312604141,1706064632210,-154.56361533,0.00021093,2]
[312604142,1706064632219,-176.5,0.0002117,2]
[312604143,1706064632228,-28615.66,0.00021264,2]
[312604144,1706064632237,-200.0,0.00021336,2]
[312604145,1706064632246,-207.13,0.00021345,2]
[312604146,1706064632255,-429.02,0.00021377,2]
[312604147,1706064632265,-150.0,0.000214,2]
[312604148,1706064632275,-205.54,0.000214,2]
[312604149,1706064632284,-625.76,0.00021465,2]
[312604150,1706064632293,-250.0,0.00021486,2]
[312604151,1706064632302,-787.33,0.00021547,2]
[312604152,1706064632312,-5016.6990164,0.00021622,2]
[312604153,1706064632328,-1026.8579553,0.00021622,2]
[312604154,1706064632339,-518.79841674,0.00021622,2]
[312604155,1706064632358,-3747.09115664,0.00021622,2]
[312604156,1706064632370,-456.31690773,0.00021622,2]
[312604157,1706064632381,-300.0,0.00021622,2]
[312604158,1706064632392,-1038.37070633,0.00021622,2]
[312604159,1706064632404,-1426.73096217,0.00021622,2]
[312604160,1706064632419,-551.95024485,0.00021622,2]
[312604161,1706064632480,-355.98025769,0.00021622,2]
[312604162,1706064632491,-307.51494231,0.00021622,2]
[312604164,1706064632503,-904.26880235,0.00021622,2]
[312604166,1706064632515,-3772.98995178,0.00021622,2]
[312604169,1706064632534,-582.85486302,0.00021622,2]
[312604171,1706064632545,-542.18999,0.00021622,2]
[312604173,1706064632556,-546.54532813,0.00021622,2]
[312604175,1706064632569,-594.84049856,0.00021622,2]
[312604177,1706064632578,-155.34111828,0.00021718,2]
[312604179,1706064632593,-21.15888172,0.00021718,2]
[312604181,1706064632602,-395.27,0.00021788,2]
[312604183,1706064632612,-250.0,0.00021918,2]
[312604185,1706064632621,-160.12,0.0002196,2]
[312604187,1706064632629,-277.94,0.00021973,2]
[312604189,1706064632639,-570.98,0.00022094,2]
[312604190,1706064632649,-176.5,0.00022266,2]
[312604191,1706064632658,-160.12,0.00022533,2]
[312604192,1706064632667,-994.7795045,0.00022595,3]
[312604193,1706064632677,-499.99,0.00022595,2]
[312604194,1706064632686,-365.7836,0.000227,2]
[312604195,1706064632695,-4179.75631864,0.000227,2]
[312604196,1706064632707,-4448.13567168,0.000227,2]
[312604197,1706064632726,-825.53417128,0.000227,2]
[312604198,1706064632745,-4482.96214092,0.000227,2]
[312604224,1706064638488,-1562.40130676,0.000227,2]
[312604227,1706064638525,-926.63689892,0.000227,2]
[312604240,1706064638665,-3627.95124371,0.000227,2]
[312604243,1706064638677,-2254.86092408,0.000227,2]
[312604246,1706064638704,-9159.44392401,0.000227,2]
[312604249,1706064638718,-1080.84104196,0.00022798,2]
[312604251,1706064638728,-9577.59985762,0.00022798,2]
[312604460,1706064640730,-16564.8553381,0.00022798,2]
[312604462,1706064640743,-2719.65690231,0.00022798,2]
[312604465,1706064640759,-1903.09175261,0.00022798,2]
[312604467,1706064640769,-19454.53824739,0.000228,2]
[312604471,1706064640796,-36816.4684082,0.000228,2]
[312604473,1706064640808,-320.7376266,0.000228,2]
[312604475,1706064640820,-13613.73020485,0.000228,2]
[312604479,1706064640844,-402.96067616,0.000228,2]
[312604481,1706064640856,-507.76928861,0.000228,2]
[312604484,1706064640867,-601.05792827,0.000228,2]
[312604486,1706064640879,-541.05532265,0.000228,2]
[312604488,1706064640890,-1482.74268011,0.000228,2]
[312604490,1706064640902,-1612.60638186,0.000228,2]
[312604546,1706064641412,-463.53298113,0.000228,2]
[312604555,1706064641489,-526.23980547,0.000228,2]
[312604557,1706064641501,-321.57161914,0.000228,2]
[312604560,1706064641513,-6158.84637247,0.000228,2]
[312604562,1706064641524,-1445.67952852,0.000228,2]
[312604564,1706064641536,-537.78677906,0.000228,2]
[312604566,1706064641547,-15192.67614951,0.000228,2]
[312604568,1706064641558,-492.75092975,0.000228,2]
[312604571,1706064641570,-312.14320097,0.000228,2]
[312604575,1706064641603,-1448.76776928,0.000228,2]
[312604577,1706064641613,-183.6206794,0.00022814,2]
[312604579,1706064641622,-828.3166,0.000229,2]
[312604581,1706064641632,-944.66561288,0.00022998,2]
[312604583,1706064641641,-371.01115216,0.00022998,2]
[312604585,1706064641651,-204.84671022,0.00022998,2]
[312604587,1706064641661,-294.31141184,0.00022998,2]
[312604588,1706064641671,-157.21646418,0.00022999,2]
[312604589,1706064641680,-4812.54860991,0.00023,2]
[312604631,1706064643219,-18308.59767114,0.00023,2]
[312604632,1706064643234,-524.28678313,0.00023,2]
[312604633,1706064643246,-723.05702901,0.00023,2]
[312604634,1706064643257,-1771.22584061,0.00023,2]
[312604635,1706064643273,-1321.86465,0.00023,2]
[312604636,1706064643284,-261.12527415,0.00023,2]
[312604637,1706064643296,-696.05985471,0.00023,2]
[312604638,1706064643321,-21011.99395085,0.00023,2]
[312604639,1706064643335,-5688.8113681,0.00023,2]
[312604640,1706064643346,-352.73851809,0.00023,2]
[312604641,1706064643478,-1515.01903168,0.00023,2]
[312604642,1706064643489,-1865.40876296,0.00023,2]
[312604643,1706064643500,-4241.5234988,0.00023,2]
[312604644,1706064643594,-2499.40594227,0.00023,2]
[312604645,1706064643626,-3337.82693116,0.00023,2]
[312604646,1706064643637,-714.87358568,0.00023,2]
[312604647,1706064643749,-801.21953362,0.00023,2]
[312604648,1706064643761,-1449.54671138,0.00023,2]
[312604649,1706064643773,-293.33957425,0.00023,2]
[312604652,1706064646213,-934.74975229,0.00022798,2]
[312604653,1706064646324,-458.68667897,0.00022798,2]
[312604654,1706064646334,-1000.0,0.00022799,2]
[312604655,1706064646343,-8688.17633727,0.00022799,2]
[312604656,1706064646386,-611.76122505,0.00022799,2]
[312604657,1706064646435,-388.95084273,0.00022799,2]
[312604658,1706064646493,-685.31274993,0.00022799,2]
[312604659,1706064646505,-8649.46532509,0.00022799,2]
[312604660,1706064646514,-8659.15490505,0.00023,2]
[312604661,1706064646527,-2362.80717664,0.00023,2]
[312604663,1706064646552,-1992.01801662,0.00023,2]
[312604665,1706064646563,-2801.02534207,0.00023,2]
[312604709,1706064649654,284.10923497,0.00020622,2]
[312604711,1706064661615,336.20359972,0.00020622,2]
[312604722,1706064876894,172.48,0.00016712,2]
[312604752,1706065143952,285.38,0.00020362,2]
[312604753,1706065202397,150.0,0.00020362,2]
[312604754,1706065202607,150.0,0.00020362,2]
[312604755,1706065202806,150.0,0.00020362,2]
[312604756,1706065203016,150.0,0.00020362,2]
[312604757,1706065203230,150.0,0.00020362,2]
[312604758,1706065203410,150.0,0.00020362,2]
[312604759,1706065203614,150.0,0.00020362,2]
[312604760,1706065203810,150.0,0.00020362,2]
[312604761,1706065204033,150.0,0.00020362,2]
[312604762,1706065204310,150.0,0.00020362,2]
[312604763,1706065204502,150.0,0.00020362,2]
[312604782,1706065780435,307.7,0.00019748,2]
[312604795,1706065832347,-3033.45925773,0.00021617,2]
[312604796,1706065832356,-150.0,0.00021619,2]
[312604797,1706065832366,-1604.08,0.00021626,2]
[312604798,1706065832375,-343.22,0.00021632,2]
[312604799,1706065832384,-280.92,0.00021656,2]
[312604800,1706065832393,-21395.08,0.00021676,2]
[312604801,1706065832402,-726.4,0.00021712,2]
[312604802,1706065832412,-1219.44102092,0.0002179,2]
[312604803,1706065832420,-157.02,0.00021838,2]
[312604804,1706065832430,-3574.71,0.00021838,2]
[312604805,1706065832438,-379.94,0.00021838,2]
[312604806,1706065832447,-325.12,0.00021838,2]
[312604807,1706065832456,-250.0,0.00021918,2]
[312604808,1706065832465,-307.7,0.00022012,2]
[312604809,1706065832474,-177.95,0.00022204,2]
[312604810,1706065832483,-157.02,0.00022218,2]
[312604811,1706065832492,-210.0,0.00022268,2]
[312604812,1706065832502,-154.92028374,0.00022291,2]
[312604813,1706065832511,-154.92028371,0.00022494,2]
[312604814,1706065832520,-829.4557325,0.000225,3]
[312604815,1706065832529,-17186.47470231,0.000225,2]
[312604816,1706065832538,-157.02,0.00022597,2]
[312604817,1706065832547,-231.04821633,0.00022599,2]
[312604818,1706065832556,-154.92028371,0.00022697,2]
[312604819,1706065832565,-363.6475049,0.000227,2]
[312604820,1706065832590,-346.80171835,0.000227,2]
[312604821,1706065832617,-4829.88557675,0.000227,2]
[312604822,1706065832627,-2445.7999,0.000228,2]
[312604823,1706065832637,-2560.99761552,0.000228,2]
[312604824,1706065832668,-17465.38102423,0.000228,2]
[312604825,1706065832680,-5234.68465695,0.000228,2]
[312604826,1706065832703,-1021.05941558,0.000228,2]
[312604827,1706065832741,-564.28815814,0.000228,2]
[312604828,1706065832753,-300.0,0.000228,2]
[312604829,1706065832765,-2452.82180947,0.000228,2]
[312604830,1706065832821,-630.91683847,0.00021616,2]
[312604845,1706065838424,-369.08316153,0.00021616,2]
[312604847,1706065838434,-402.63954009,0.00021616,2]
[312604850,1706065838446,-18621.02693998,0.00021616,2]
[312604852,1706065838456,-213.0,0.00022268,2]
[312604854,1706065838465,-37723.83611119,0.000228,2]